fUSD/lending_fUSD_20260401
["ID","MTS","AMOUNT","RATE_DAILY","PERIOD"]
[419249213,1775049043882,-304.02480851,0.00015078,2]
[419249214,1775049043891,-160.0,0.00015086,7]
[419249215,1775049043900,-560.43185,0.00015086,7]
[419249216,1775049043910,-960.863701,0.00015086,7]
[419249217,1775049043919,-1083.02737997,0.00015094,2]
[419249218,1775049043929,-1149.93521925,0.00015094,2]
[419249219,1775049043938,-1100.79634796,0.00015094,2]
[419249220,1775049043947,-1136.44378104,0.00015094,2]
[419249221,1775049043957,-1138.8766142,0.00015094,2]
[419249222,1775049043966,-1105.14609868,0.00015094,2]
[419249223,1775049043975,-168.0,0.00015128,2]
[419249224,1775049043985,-11046.30350255,0.00015133,2]
[419249225,1775049043994,-500.0,0.00015133,2]
[419249226,1775049044003,-151.0,0.00015133,2]
[419249227,1775049044013,-315.27372642,0.00015133,2]
[419249228,1775049044023,-269.516434,0.00015169,7]
[419249229,1775049044032,-160.0,0.00015169,7]
[419249230,1775049044041,-299.019294,0.00015169,7]
[419249231,1775049044051,-438.038589,0.00015169,7]
[419249232,1775049044061,-278.252815,0.00015169,2]
[419249233,1775049044070,-160.0,0.00015169,7]
[419249234,1775049044080,-378.495931,0.00015169,7]
[419249235,1775049044089,-596.991863,0.00015169,7]
[419249236,1775049044101,-215.85673,0.00015169,2]
[419249237,1775049044110,-500.0,0.00015188,2]
[419249238,1775049044120,-151.0,0.00015188,2]
[419249239,1775049044129,-326.9388543,0.00015188,2]
[419249240,1775049044138,-2000.0,0.000152,2]
[419249241,1775049044147,-350.0,0.00015227,2]
[419249242,1775049044156,-5000.0,0.00015242,2]
[419249243,1775049044165,-500.0,0.00015243,2]
[419249244,1775049044175,-151.0,0.00015243,2]
[419249245,1775049044184,-339.03559191,0.00015243,2]
[419249246,1775049044193,-168.0,0.00015259,2]
[419249247,1775049044203,-2964.92,0.00015282,2]
[419249248,1775049044214,-785.2,0.00015285,2]
[419249249,1775049044223,-500.0,0.00015298,2]
[419249250,1775049044234,-151.0,0.00015298,2]
[419249251,1775049044245,-528.0,0.0001531,2]
[419249252,1775049044254,-1000.0,0.00015334,2]
[419249253,1775049044266,-298.21038318,0.00015334,2]
[419249254,1775049044276,-367.40868416,0.00015334,2]
[419249255,1775049044285,-166.66,0.00015338,2]
[419249256,1775049044295,-150.0,0.00015342,2]
[419249257,1775049044304,-150.0,0.00015342,2]
[419249258,1775049044313,-150.0,0.00015342,2]
[419249259,1775049044323,-150.0,0.00015342,2]
[419249260,1775049044335,-150.0,0.00015342,2]
[419249261,1775049044345,-250.0,0.00015342,2]
[419249262,1775049044355,-500.0,0.00015342,2]
[419249263,1775049044364,-500.0,0.00015342,2]
[419249264,1775049044375,-500.0,0.00015342,2]
[419249265,1775049044386,-500.0,0.00015342,2]
[419249266,1775049044397,-500.0,0.00015342,2]
[419249267,1775049044407,-500.0,0.00015342,2]
[419249268,1775049044416,-500.0,0.00015342,2]
[419249269,1775049044425,-500.0,0.00015342,2]
[419249270,1775049044435,-500.0,0.00015342,2]
[419249271,1775049044444,-500.0,0.00015342,2]
[419249272,1775049044454,-500.0,0.00015342,2]
[419249273,1775049044463,-500.0,0.00015342,2]
[419249274,1775049044472,-500.0,0.00015342,2]
[419249275,1775049044481,-500.0,0.00015342,2]
[419249276,1775049044491,-500.0,0.00015342,2]
[419249277,1775049044500,-500.0,0.00015342,2]
[419249278,1775049044509,-500.0,0.00015342,2]
[419249279,1775049044519,-500.0,0.00015342,2]
[419249280,1775049044529,-569.11643271,0.00015342,2]
[419249281,1775049044538,-500.0,0.00015342,2]
[419249282,1775049044547,-500.0,0.00015342,2]
[419249283,1775049044556,-500.0,0.00015342,2]
[419249284,1775049044565,-500.0,0.00015342,2]
[419249285,1775049044574,-500.0,0.00015342,2]
[419249286,1775049044583,-500.0,0.00015342,2]
[419249287,1775049044593,-500.0,0.00015342,2]
[419249288,1775049044602,-388.07199871,0.00015342,2]
[419249289,1775049044612,-500.0,0.00015342,2]
[419249290,1775049044621,-500.0,0.00015342,2]
[419249291,1775049044631,-500.0,0.00015342,2]
[419249292,1775049044639,-330.83967565,0.00015342,2]
[419249293,1775049044649,-156.78867168,0.00015342,2]
[419249294,1775049044658,-500.0,0.00015342,2]
[419249295,1775049044667,-520.28767977,0.00015342,2]
[419249296,1775049044676,-500.0,0.00015342,2]
[419249297,1775049044686,-500.0,0.00015342,2]
[419249298,1775049044695,-500.0,0.00015342,2]
[419249299,1775049044704,-500.0,0.00015342,2]
[419249300,1775049044714,-500.0,0.00015342,2]
[419249301,1775049044723,-500.0,0.00015342,2]
[419249302,1775049044733,-500.0,0.00015342,2]
[419249303,1775049044742,-608.87103939,0.00015342,2]
[419249304,1775049044751,-500.0,0.00015342,2]
[419249305,1775049044760,-150.0,0.00015342,2]
[419249306,1775049044769,-500.0,0.00015342,2]
[419249307,1775049044779,-500.0,0.00015342,2]
[419249308,1775049044791,-150.0,0.00015342,2]
[419249309,1775049044802,-500.0,0.00015342,2]
[419249310,1775049044811,-152.20138541,0.00015342,2]
[419249311,1775049044822,-500.0,0.00015342,2]
[419249312,1775049044831,-500.0,0.00015342,2]
[419249313,1775049044841,-500.0,0.00015342,2]
[419249314,1775049044850,-500.0,0.00015342,2]
[419249315,1775049044860,-500.0,0.00015342,2]
[419249316,1775049044870,-500.0,0.00015342,2]
[419249317,1775049044880,-500.0,0.00015342,2]
[419249318,1775049044890,-367.08167146,0.00015342,2]
[419249319,1775049044899,-500.0,0.00015342,2]
[419249320,1775049044910,-500.0,0.00015342,2]
[419249321,1775049044919,-500.0,0.00015342,2]
[419249322,1775049044928,-500.0,0.00015342,2]
[419249323,1775049044938,-500.0,0.00015342,2]
[419249324,1775049044946,-350.0,0.00015342,2]
[419249325,1775049044957,-150.0,0.00015342,2]
[419249326,1775049044966,-500.0,0.00015342,2]
[419249327,1775049044976,-500.0,0.00015342,2]
[419249328,1775049044987,-500.0,0.00015342,2]
[419249329,1775049044996,-287.01664787,0.00015342,2]
[419249330,1775049045007,-500.0,0.00015342,2]
[419249331,1775049045017,-500.0,0.00015342,2]
[419249332,1775049045026,-500.0,0.00015342,2]
[419249333,1775049045035,-500.0,0.00015342,2]
[419249334,1775049045047,-500.0,0.00015342,2]
[419249335,1775049045057,-500.0,0.00015342,2]
[419249336,1775049045066,-500.0,0.00015342,2]
[419249337,1775049045075,-500.0,0.00015342,2]
[419249338,1775049045084,-500.0,0.00015342,2]
[419249339,1775049045093,-500.0,0.00015342,2]
[419249340,1775049045103,-500.0,0.00015342,2]
[419249341,1775049045113,-500.0,0.00015342,2]
[419249342,1775049045122,-500.0,0.00015342,2]
[419249343,1775049045131,-500.0,0.00015342,2]
[419249344,1775049045141,-500.0,0.00015342,2]
[419249345,1775049045150,-500.0,0.00015342,2]
[419249346,1775049045160,-500.0,0.00015342,2]
[419249347,1775049045170,-500.0,0.00015342,2]
[419249348,1775049045180,-500.0,0.00015342,2]
[419249349,1775049045189,-500.0,0.00015342,2]
[419249350,1775049045199,-500.0,0.00015342,2]
[419249351,1775049045209,-500.0,0.00015342,2]
[419249352,1775049045221,-500.0,0.00015342,2]
[419249353,1775049045230,-500.0,0.00015342,2]
[419249354,1775049045239,-500.0,0.00015342,2]
[419249355,1775049045249,-500.0,0.00015342,2]
[419249356,1775049045258,-500.0,0.00015342,2]
[419249357,1775049045268,-500.0,0.00015342,2]
[419249358,1775049045277,-500.0,0.00015342,2]
[419249359,1775049045286,-500.0,0.00015342,2]
[419249360,1775049045295,-500.0,0.00015342,2]
[419249361,1775049045304,-500.0,0.00015342,2]
[419249362,1775049045314,-500.0,0.00015342,2]
[419249363,1775049045323,-275.99111668,0.00015342,2]
[419249365,1775049045333,-500.0,0.00015342,2]
[419249366,1775049045342,-500.0,0.00015342,2]
[419249367,1775049045352,-500.0,0.00015342,2]
[419249368,1775049045363,-500.0,0.00015342,2]
[419249369,1775049045373,-500.0,0.00015342,2]
[419249370,1775049045382,-500.0,0.00015342,2]
[419249371,1775049045392,-359.62142584,0.00015342,2]
[419249372,1775049045402,-623.45997877,0.00015342,2]
[419249373,1775049045411,-150.0,0.00015342,2]
[419249374,1775049045421,-500.0,0.00015353,2]
[419249375,1775049045432,-151.0,0.00015353,2]
[419249376,1775049045442,-1146.91682136,0.0001538,2]
[419249377,1775049045451,-1406.76261711,0.00015394,2]
[419249378,1775049045461,-544.18197644,0.000154,2]
[419249379,1775049045471,-11981.23922054,0.000154,2]
[419249380,1775049045480,-1428.38747117,0.00015406,2]
[419249381,1775049045490,-209.40437684,0.00015406,2]
[419249382,1775049045499,-200.0,0.00015406,2]
[419249383,1775049045508,-200.0,0.00015406,2]
[419249384,1775049045517,-181.08010149,0.00015406,2]
[419249385,1775049045527,-771.01748645,0.00015406,2]
[419249386,1775049045535,-290.26104003,0.00015406,2]
[419249387,1775049045544,-500.0,0.00015408,2]
[419249388,1775049045554,-151.0,0.00015408,2]
[419249389,1775049045563,-10750.2632335,0.00015411,2]
[419249390,1775049045572,-500.0,0.00015463,2]
[419249391,1775049045581,-151.0,0.00015463,2]
[419249392,1775049045590,-154.94225416,0.00015468,2]
[419249393,1775049045599,-500.0,0.00015473,2]
[419249394,1775049045608,-500.0,0.00015473,2]
[419249395,1775049045618,-500.0,0.00015473,2]
[419249396,1775049045627,-500.0,0.00015473,2]
[419249397,1775049045638,-500.37557038,0.00015473,2]
[419249398,1775049045647,-264.52314394,0.00015473,2]
[419249399,1775049045656,-500.0,0.00015477,2]
[419249400,1775049045666,-500.0,0.00015477,2]
[419249401,1775049045675,-500.0,0.00015477,2]
[419249402,1775049045684,-500.0,0.00015477,2]
[419249403,1775049045693,-500.0,0.00015477,2]
[419249404,1775049045702,-500.0,0.00015477,2]
[419249405,1775049045711,-500.0,0.00015477,2]
[419249406,1775049045721,-1500000.0,0.00015478,2]
[419249407,1775049045730,-315.6609,0.000155,17]
[419249408,1775049045739,-11981.23922053,0.000155,2]
[419249409,1775049045748,-1872.19,0.00015507,2]
[419249410,1775049045757,-1000.0,0.00015521,2]
[419249411,1775049045766,-500.0,0.00015521,2]
[419249412,1775049045775,-958.0,0.00015541,5]
[419249413,1775049045784,-168.0,0.00015548,2]
[419249414,1775049045796,-785.2,0.00015559,2]
[419249415,1775049045807,-3575.022,0.00015578,2]
[419249416,1775049045817,-180.802,0.00015578,2]
[419249417,1775049045828,-2000.0,0.000156,2]
[419249418,1775049045838,-156.0,0.000156,2]
[419249419,1775049045848,-1000.0,0.000156,2]
[419249420,1775049045858,-2000.0,0.000156,2]
[419249421,1775049045867,-11981.23922053,0.000156,2]
[419249422,1775049045876,-168.0,0.00015602,2]
[419249423,1775049045886,-350.0,0.00015608,2]
[419249424,1775049045895,-544.18197644,0.0001565,2]
[419249425,1775049045905,-350.0,0.00015655,2]
[419249426,1775049045914,-168.0,0.00015679,2]
[419249427,1775049045925,-1053.10156525,0.0001568,2]
[419249428,1775049045936,-1107.78663101,0.0001568,2]
[419249429,1775049045947,-1092.86276891,0.0001568,2]
[419249430,1775049045957,-1034.53761427,0.0001568,2]
[419249431,1775049045966,-1001.70158941,0.0001568,2]
[419249432,1775049045975,-1049.06786045,0.0001568,2]
[419249433,1775049045986,-1050.15001659,0.0001568,2]
[419249434,1775049045995,-1148.78398103,0.0001568,2]
[419249435,1775049046005,-1109.87491521,0.0001568,2]
[419249436,1775049046014,-1142.25799967,0.0001568,2]
[419249437,1775049046023,-1086.19842926,0.0001568,2]
[419249438,1775049046033,-1093.11716624,0.0001568,2]
[419249439,1775049046042,-979.0334225,0.0001568,2]
[419249440,1775049046051,-929.84,0.00015684,2]
[419249441,1775049046060,-11981.23922053,0.000157,2]
[419249442,1775049046069,-500.0,0.00015723,2]
[419249443,1775049046078,-500.0,0.00015753,2]
[419249444,1775049046088,-500.0,0.00015753,3]
[419249445,1775049046097,-500.0,0.00015753,4]
[419249447,1775049046106,-282.25355257,0.00015759,2]
[419249448,1775049046115,-712.0,0.00015792,2]
[419249449,1775049046124,-2000.0,0.000158,2]
[419249450,1775049046134,-11981.23922053,0.000158,2]
[419249451,1775049046144,-168.0,0.00015821,2]
[419249452,1775049046153,-166.66,0.00015828,2]
[419249453,1775049046163,-206.04,0.00015833,2]
[419249454,1775049046173,-1225.33,0.00015839,2]
[419249455,1775049046182,-500.0,0.00015839,2]
[419249456,1775049046191,-500.0,0.00015839,2]
[419249457,1775049046200,-764.225251,0.0001584,7]
[419249458,1775049046209,-128106.53871111,0.0001584,2]
[419249459,1775049046218,-2000.0,0.0001584,2]
[419249460,1775049046227,-2000.0,0.0001584,2]
[419249461,1775049046236,-2000.0,0.0001585,2]
[419249462,1775049046247,-667.36814293,0.00015857,2]
[419249463,1775049046257,-200.0,0.00015871,2]
[419249464,1775049046267,-200.0,0.00015872,2]
[419249465,1775049046276,-879.93134742,0.00015882,2]
[419249466,1775049046285,-2000.0,0.0001589,2]
[419249467,1775049046295,-1872.19,0.00015895,2]
[419249468,1775049046304,-173.3840015,0.00015897,2]
[419249469,1775049046313,-2785.03471442,0.00015897,2]
[419249470,1775049046323,-505.0,0.00015898,4]
[419249471,1775049046332,-156.0,0.000159,2]
[419249472,1775049046341,-10750.2632335,0.000159,2]
[419249473,1775049046351,-1406.76261711,0.000159,2]
[419249474,1775049046363,-544.18197644,0.000159,2]
[419249475,1775049046372,-453.0,0.000159,2]
[419249476,1775049046381,-11981.23922053,0.000159,2]
[419249477,1775049046390,-407.753583,0.00015927,7]
[419249478,1775049046399,-516.130815,0.00015927,7]
[419249479,1775049046408,-1481.23780761,0.00015954,2]
[419249480,1775049046417,-217.15233878,0.00015954,2]
[419249481,1775049046428,-200.0,0.00015954,2]
[419249482,1775049046438,-200.0,0.00015954,2]
[419249483,1775049046448,-187.78006525,0.00015954,2]
[419249484,1775049046457,-799.54513345,0.00015954,2]
[419249485,1775049046466,-296.57605829,0.00015954,2]
[419249486,1775049046475,-249.67940969,0.0001596,2]
[419249487,1775049046484,-358.49657185,0.00015973,2]
[419249488,1775049046494,-1225.33,0.00015974,2]
[419249489,1775049046503,-1225.33,0.00015974,2]
[419249490,1775049046512,-1225.33,0.00015974,2]
[419249491,1775049046521,-1225.33,0.00015974,2]
[419249492,1775049046531,-1225.33,0.00015974,2]
[419249493,1775049046541,-559.62575171,0.00015974,2]
[419249494,1775049046550,-500.0,0.00015974,5]
[419249495,1775049046560,-500.0,0.00015974,6]
[419249496,1775049046570,-391.0,0.00015975,2]
[419249497,1775049046579,-712.0,0.00015975,2]
[419249498,1775049046588,-306.259251,0.00015985,2]
[419249499,1775049046598,-154.94225416,0.0001599,2]
[419249500,1775049046611,-154.94225416,0.0001599,2]
[419249501,1775049046620,-500.0,0.00015996,2]
[419249502,1775049046629,-151.0,0.00015997,2]
[419249503,1775049046639,-387.3536157,0.00015997,2]
[419249504,1775049046648,-5911.7951959,0.00015997,2]
[419249505,1775049046658,-127963.4823015,0.00015997,2]
[419249506,1775049046667,-4943.7576017,0.00015997,2]
[419249507,1775049046676,-17521.0336364,0.00015997,2]
[419249508,1775049046686,-31407.4182166,0.00015997,2]
[419249509,1775049046695,-264378.1346209,0.00015997,2]
[419249510,1775049046704,-944.0,0.00015999,5]
[419249511,1775049046714,-672.00857251,0.00015999,2]
[419249512,1775049046724,-155.0,0.00015999,2]
[419249513,1775049046733,-1225.33,0.00015999,2]
[419249514,1775049046742,-1225.33,0.00015999,2]
[419249515,1775049046751,-1225.33,0.00015999,2]
[419249516,1775049046761,-1225.33,0.00015999,2]
[419249517,1775049046770,-1225.33,0.00015999,2]
[419249518,1775049046779,-1225.33,0.00015999,2]
[419249519,1775049046789,-1225.33,0.00015999,2]
[419249520,1775049046798,-1225.33,0.00015999,2]
[419249521,1775049046807,-1225.33,0.00015999,2]
[419249522,1775049046817,-1225.49931227,0.00015999,2]
[419249523,1775049046826,-487.27760899,0.00015999,2]
[419249524,1775049046837,-364135.65004878,0.00016,2]
[419249525,1775049046846,-885595.23315973,0.00016,2]
[419249531,1775049049933,-5600.01836238,0.00011342,2]
[419249532,1775049049943,-1191.92322417,0.000147,2]
[419249533,1775049049952,-9340.04,0.00015471,2]
[419249534,1775049049961,-2425.43807152,0.0001574,2]
[419249535,1775049049970,-416.32653235,0.00016,2]
[419249536,1775049049997,-529.57114878,0.00016,2]
[419249537,1775049050008,-323.42885122,0.00016,2]
[419249538,1775049050019,-635.01,0.00016,2]
[419249539,1775049050030,-3195.21007719,0.00016,2]
[419249540,1775049050082,-198.32065977,0.00016,2]
[419249541,1775049050096,-356.88752384,0.00016,2]
[419249542,1775049050132,-5600.01836232,0.00011993,2]
[419249543,1775049050140,-150.71162126,0.0001574,2]
[419249544,1775049050149,-3367.22440377,0.00016,2]
[419249545,1775049050160,-200353.93585352,0.00016,2]
[419249546,1775049050420,-159335.63253508,0.00016,2]
[419249547,1775049050432,-11456.70164941,0.00016,2]
[419249549,1775049947529,378.70155136,4e-05,120]
[419249551,1775050211626,167.12,6.354e-05,2]
[419249552,1775050231618,-600.0,0.00011246,2]
[419249553,1775050231628,-300.0,0.00011264,2]
[419249555,1775050231638,-600.0,0.00011282,2]
[419249556,1775050231647,-600.0,0.00011282,2]
[419249558,1775050231657,-600.0,0.00011282,2]
[419249559,1775050231667,-300.0,0.00011304,2]
[419249561,1775050231677,-300.0,0.00011329,2]
[419249562,1775050231687,-828.0,0.00011329,2]
[419249563,1775050231696,-260.0,0.0001133,2]
[419249564,1775050231706,-36046.7085,0.0001133,2]
[419249565,1775050231717,-600.0,0.00012356,2]
[419249566,1775050231728,-300.0,0.00012371,2]
[419249567,1775050231739,-250.0,0.00012371,2]
[419249568,1775050231749,-420.0,0.00012445,2]
[419249569,1775050231759,-500.0,0.0001288,2]
[419249570,1775050231769,-250.0,0.00013,2]
[419249571,1775050231781,-150.0,0.000131,2]
[419249572,1775050231792,-505.0,0.00013111,2]
[419249573,1775050231802,-312.94,0.0001317,2]
[419249574,1775050231812,-3488.22839365,0.0001317,2]
[419249575,1775050231834,-2666.33773602,0.0001317,2]
[419249576,1775050231901,-841.60151792,0.0001317,2]
[419249601,1775050237912,-678.69,0.0001317,2]
[419249602,1775050237925,-342.34556,0.0001317,2]
[419249606,1775050239982,-1393.20373301,0.0001317,2]
[419249617,1775050240509,-341.77167062,0.0001317,2]
[419249619,1775050240523,-1326.28138878,0.0001317,2]
[419249621,1775050240532,-39.14340356,0.00013338,2]
[419249623,1775050240544,-116.85659644,0.00013338,2]
[419249625,1775050240553,-169.03684,0.00013338,2]
[419249627,1775050240563,-283.00656356,0.00013671,2]
[419249647,1775050240769,-303.99343644,0.00013671,2]
[419249649,1775050240778,-317.8755517,0.00013747,2]
[419249651,1775050240789,-2637.9450483,0.00013747,2]
[419249653,1775050240798,-33498.5487,0.00013747,2]
[419249655,1775050240807,-2500.0,0.00013747,2]
[419249657,1775050240816,-1146.91682136,0.00013747,2]
[419249659,1775050240826,-544.18197644,0.00013747,2]
[419249661,1775050240836,-4900.01606703,0.00013747,2]
[419249662,1775050240845,-307.35154806,0.00013799,2]
[419249664,1775050240855,-500.0,0.00013799,2]
[419249666,1775050240864,-5000.0,0.000138,2]
[419249667,1775050240874,-154.94225416,0.00013837,2]
[419249668,1775050240884,-151.0,0.00013838,2]
[419249669,1775050240894,-151.0,0.00013838,2]
[419249670,1775050240904,-151.0,0.00013838,2]
[419249671,1775050240915,-151.0,0.00013838,2]
[419249672,1775050240925,-151.0,0.00013838,2]
[419249673,1775050240934,-151.0,0.00013838,2]
[419249674,1775050240944,-151.0,0.00013838,2]
[419249675,1775050240954,-151.0,0.00013838,2]
[419249676,1775050240968,-151.0,0.00013838,2]
[419249677,1775050240978,-151.0,0.00013838,2]
[419249678,1775050240988,-151.0,0.00013838,2]
[419249679,1775050240999,-151.0,0.00013838,2]
[419249680,1775050241009,-366.14980616,0.00013846,2]
[419249681,1775050241021,-500.0,0.00013846,2]
[419249682,1775050241030,-500.0,0.00013846,2]
[419249683,1775050241040,-500.0,0.00013846,2]
[419249685,1775050241051,-355.0598339,0.00013846,2]
[419249687,1775050241061,-500.0,0.00013846,2]
[419249689,1775050241072,-572.79643314,0.00013846,2]
[419249691,1775050241083,-192.7243673,0.00013846,2]
[419249693,1775050241094,-500.0,0.00013846,2]
[419249695,1775050241106,-500.0,0.00013846,2]
[419249696,1775050241118,-500.0,0.00013846,2]
[419249697,1775050241128,-631.92471342,0.00013846,2]
[419249698,1775050241139,-500.0,0.00013846,2]
[419249699,1775050241150,-500.0,0.00013846,2]
[419249700,1775050241160,-500.0,0.00013846,2]
[419249701,1775050241169,-1500000.0,0.00013847,2]
[419249702,1775050241180,-200.0,0.00013847,5]
[419249703,1775050241189,-200.0,0.00013847,5]
[419249704,1775050241199,-200.0,0.00013847,5]
[419249705,1775050241209,-200.0,0.00013847,5]
[419249706,1775050241218,-200.0,0.00013847,5]
[419249707,1775050241228,-200.0,0.00013847,5]
[419249708,1775050241240,-200.0,0.00013847,5]
[419249709,1775050241250,-200.0,0.00013847,5]
[419249710,1775050241260,-200.0,0.00013847,5]
[419249711,1775050241270,-200.0,0.00013847,5]
[419249712,1775050241280,-200.0,0.00013847,5]
[419249713,1775050241290,-200.0,0.00013847,5]
[419249714,1775050241301,-200.0,0.00013847,5]
[419249715,1775050241312,-200.0,0.00013847,5]
[419249716,1775050241324,-200.0,0.00013847,5]
[419249717,1775050241334,-200.0,0.00013847,5]
[419249718,1775050241344,-200.0,0.00013847,5]
[419249719,1775050241354,-200.0,0.00013847,5]
[419249720,1775050241363,-200.0,0.00013847,5]
[419249721,1775050241373,-200.0,0.00013847,5]
[419249722,1775050241382,-200.0,0.00013847,5]
[419249723,1775050241391,-200.0,0.00013847,5]
[419249724,1775050241401,-200.0,0.00013847,5]
[419249725,1775050241411,-200.0,0.00013847,5]
[419249726,1775050241421,-200.0,0.00013847,5]
[419249727,1775050241431,-200.0,0.00013847,5]
[419249728,1775050241440,-200.0,0.00013847,5]
[419249729,1775050241450,-200.0,0.00013847,5]
[419249730,1775050241459,-200.0,0.00013847,5]
[419249731,1775050241469,-200.0,0.00013847,5]
[419249732,1775050241479,-200.0,0.00013847,5]
[419249733,1775050241488,-200.0,0.00013847,5]
[419249734,1775050241498,-200.0,0.00013847,5]
[419249735,1775050241507,-200.0,0.00013847,5]
[419249736,1775050241517,-200.0,0.00013847,5]
[419249737,1775050241526,-170.481014,0.00013847,5]
[419249738,1775050241536,-312.94,0.00013902,2]
[419249739,1775050241548,-1852.42,0.00013905,2]
[419249740,1775050241557,-2000.0,0.0001394,2]
[419249741,1775050242010,-4900.01606703,0.00014055,2]
[419249742,1775050242022,-192.1927,0.000143,7]
[419249743,1775050242033,-4900.01606703,0.00014362,2]
[419249744,1775050242043,-160.0,0.00014493,2]
[419249745,1775050242054,-160.0,0.00014493,2]
[419249746,1775050242064,-312.94,0.00014633,2]
[419249747,1775050242074,-4900.01606703,0.0001467,2]
[419249748,1775050242083,-11981.23922054,0.00014724,2]
[419249749,1775050242094,-544.18197644,0.00014824,2]
[419249750,1775050242103,-597.35,0.00014853,2]
[419249751,1775050242113,-7702.82,0.00014853,2]
[419249752,1775050242123,-500.0,0.00014856,2]
[419249753,1775050242133,-500.0,0.00014856,2]
[419249754,1775050242142,-500.0,0.00014856,2]
[419249755,1775050242152,-500.0,0.00014856,2]
[419249756,1775050242161,-250.35650714,0.0001486,2]
[419249757,1775050242171,-578.20924308,0.00014926,2]
[419249758,1775050242183,-500.0,0.00014926,2]
[419249759,1775050242193,-500.0,0.00014926,2]
[419249760,1775050242202,-1377.42282659,0.00014926,2]
[419249761,1775050242212,-200.0,0.00014926,2]
[419249762,1775050242222,-201.93286099,0.00014926,2]
[419249763,1775050242231,-500.0,0.00014926,2]
[419249764,1775050242241,-500.0,0.00014926,2]
[419249765,1775050242250,-500.0,0.00014926,2]
[419249766,1775050242260,-500.0,0.00014926,2]
[419249767,1775050242269,-500.0,0.00014926,2]
[419249768,1775050242279,-500.0,0.00014926,2]
[419249769,1775050242290,-500.0,0.00014926,2]
[419249770,1775050242300,-500.0,0.00014926,2]
[419249771,1775050242310,-500.0,0.00014926,2]
[419249772,1775050242320,-500.0,0.00014926,2]
[419249773,1775050242330,-500.0,0.00014926,2]
[419249774,1775050242339,-500.0,0.00014926,2]
[419249775,1775050242349,-500.0,0.00014926,2]
[419249776,1775050242358,-500.0,0.00014926,2]
[419249777,1775050242368,-500.0,0.00014926,2]
[419249778,1775050242377,-500.0,0.00014926,2]
[419249779,1775050242386,-500.0,0.00014926,2]
[419249780,1775050242395,-500.0,0.00014926,2]
[419249781,1775050242405,-500.0,0.00014926,2]
[419249782,1775050242415,-500.0,0.00014926,2]
[419249783,1775050242424,-500.0,0.00014926,2]
[419249784,1775050242434,-500.0,0.00014926,2]
[419249786,1775050242443,-500.0,0.00014926,2]
[419249788,1775050242452,-500.0,0.00014926,2]
[419249789,1775050242462,-500.0,0.00014926,2]
[419249790,1775050242471,-500.0,0.00014926,2]
[419249791,1775050242480,-500.0,0.00014926,2]
[419249792,1775050242490,-500.0,0.00014926,2]
[419249793,1775050242499,-510.80849174,0.00014926,2]
[419249794,1775050242510,-500.0,0.00014926,2]
[419249795,1775050242519,-500.0,0.00014926,2]
[419249796,1775050242529,-151.0,0.00014926,2]
[419249797,1775050242539,-174.61919141,0.00014926,2]
[419249799,1775050242548,-250.0,0.00014926,2]
[419249800,1775050242558,-250.0,0.00014926,2]
[419249802,1775050242567,-200.0,0.00014926,2]
[419249804,1775050242577,-250.0,0.00014926,2]
[419249805,1775050242587,-250.0,0.00014926,2]